fUST/lending_fUST_20250702
["ID","MTS","AMOUNT","RATE_DAILY","PERIOD"]
[369086456,1751465443937,-336.92244762,0.00018381,2]
[369086457,1751465443949,-1040.57246831,0.00018381,2]
[369086458,1751465443959,-168.0,0.00018408,2]
[369086459,1751465443969,-168.0,0.00018466,2]
[369086460,1751465443979,-200.0,0.00018474,10]
[369086462,1751465443989,-200.0,0.00018474,10]
[369086464,1751465443998,-220.428241,0.00018474,10]
[369086465,1751465444008,-5000.0,0.00018474,2]
[369086466,1751465444018,-207.4,0.00018474,2]
[369086467,1751465444027,-1000.0,0.000185,2]
[369086468,1751465444037,-168.0,0.00018656,2]
[369086469,1751465444048,-160.0,0.00018671,2]
[369086470,1751465444059,-650.0,0.00018679,2]
[369086471,1751465444068,-168.0,0.00018711,2]
[369086472,1751465444077,-420.0,0.00018736,2]
[369086473,1751465444087,-420.0,0.00018736,2]
[369086474,1751465444096,-168.0,0.00018755,2]
[369086475,1751465444105,-168.0,0.0001877,2]
[369086476,1751465444114,-168.0,0.0001882,2]
[369086477,1751465444124,-1680.0,0.00018829,2]
[369086478,1751465444135,-168.0,0.00018861,2]
[369086479,1751465444144,-6851.93569407,0.000189,2]
[369086480,1751465444153,-168.0,0.00018909,2]
[369086481,1751465444163,-203.3,0.00018997,3]
[369086482,1751465444172,-1000.0,0.00019,2]
[369086483,1751465444181,-784.59,0.00019021,2]
[369086484,1751465444190,-5000.0,0.00019022,2]
[369086485,1751465444199,-500.0,0.00019077,2]
[369086486,1751465444208,-500.0,0.00019077,2]
[369086487,1751465444218,-500.0,0.00019077,2]
[369086488,1751465444227,-322.17831615,0.00019077,2]
[369086489,1751465444236,-340.40310545,0.00019078,2]
[369086490,1751465444245,-900.0,0.000191,26]
[369086491,1751465444255,-1874.25355974,0.00019131,2]
[369086492,1751465444263,-6851.93569379,0.00019141,2]
[369086493,1751465444273,-305.43,0.00019168,3]
[369086494,1751465444283,-152.71,0.00019168,3]
[369086495,1751465444292,-458.18,0.00019168,3]
[369086496,1751465444302,-213.90888375,0.0001917,2]
[369086497,1751465444312,-215.04179405,0.0001917,2]
[369086498,1751465444322,-160.0,0.0001917,2]
[369086499,1751465444331,-160.0,0.0001917,2]
[369086500,1751465444341,-847.65867985,0.0001917,2]
[369086501,1751465444351,-837.27862799,0.00019174,2]
[369086502,1751465444360,-460.0,0.00019178,2]
[369086503,1751465444369,-243.5538511,0.00019178,2]
[369086504,1751465444378,-460.0,0.00019178,2]
[369086505,1751465444388,-460.0,0.00019178,2]
[369086506,1751465444397,-460.0,0.00019178,2]
[369086507,1751465444406,-460.0,0.00019178,2]
[369086508,1751465444415,-460.0,0.00019178,2]
[369086509,1751465444425,-460.0,0.00019178,2]
[369086510,1751465444434,-310.23214191,0.00019178,2]
[369086511,1751465444443,-215.70540546,0.00019178,2]
[369086512,1751465444453,-460.0,0.00019178,2]
[369086513,1751465444462,-460.0,0.00019178,2]
[369086514,1751465444472,-460.0,0.00019178,2]
[369086515,1751465444481,-460.0,0.00019178,2]
[369086516,1751465444491,-460.0,0.00019178,2]
[369086517,1751465444500,-460.0,0.00019178,2]
[369086518,1751465444510,-460.0,0.00019178,2]
[369086519,1751465444520,-460.0,0.00019178,2]
[369086520,1751465444530,-460.0,0.00019178,2]
[369086521,1751465444539,-460.0,0.00019178,2]
[369086522,1751465444548,-460.0,0.00019178,2]
[369086523,1751465444558,-608.67,0.00019178,2]
[369086524,1751465444567,-521.36,0.00019178,2]
[369086525,1751465444576,-342.51669618,0.00019178,2]
[369086526,1751465444586,-460.0,0.00019178,2]
[369086527,1751465444595,-1332.55,0.00019178,2]
[369086528,1751465444604,-460.0,0.00019178,2]
[369086529,1751465444614,-460.0,0.00019178,2]
[369086530,1751465444623,-460.0,0.00019178,2]
[369086531,1751465444632,-396.10813515,0.00019178,2]
[369086532,1751465444642,-460.0,0.00019178,2]
[369086533,1751465444651,-504.24,0.00019178,2]
[369086534,1751465444660,-460.0,0.00019178,2]
[369086535,1751465444670,-460.0,0.00019178,2]
[369086536,1751465444679,-460.0,0.00019178,2]
[369086537,1751465444688,-460.0,0.00019178,2]
[369086538,1751465444698,-318.0,0.00019178,2]
[369086539,1751465444708,-460.0,0.00019178,2]
[369086540,1751465444718,-460.0,0.00019178,2]
[369086541,1751465444728,-340.18300023,0.00019178,2]
[369086542,1751465444737,-460.0,0.00019178,2]
[369086543,1751465444747,-460.0,0.00019178,2]
[369086544,1751465444756,-460.0,0.00019178,2]
[369086545,1751465444766,-530.84,0.00019178,2]
[369086546,1751465444776,-460.0,0.00019178,2]
[369086547,1751465444786,-460.0,0.00019178,2]
[369086548,1751465444795,-460.0,0.00019178,2]
[369086549,1751465444805,-460.0,0.00019178,2]
[369086550,1751465444814,-159.7894581,0.00019178,2]
[369086551,1751465444824,-460.0,0.00019178,2]
[369086552,1751465444833,-460.0,0.00019178,2]
[369086553,1751465444843,-460.0,0.00019178,2]
[369086554,1751465444853,-460.0,0.00019178,2]
[369086555,1751465444862,-460.0,0.00019178,2]
[369086556,1751465444871,-4946.17,0.00019178,2]
[369086557,1751465444881,-460.0,0.00019178,2]
[369086558,1751465444890,-460.0,0.00019178,2]
[369086559,1751465444899,-460.0,0.00019178,2]
[369086560,1751465444909,-460.0,0.00019178,2]
[369086561,1751465444918,-460.0,0.00019178,2]
[369086562,1751465444928,-460.0,0.00019178,2]
[369086563,1751465444937,-460.0,0.00019178,2]
[369086564,1751465444947,-460.0,0.00019178,2]
[369086565,1751465444956,-460.0,0.00019178,2]
[369086566,1751465444966,-2135.92,0.00019178,2]
[369086567,1751465444976,-370.0,0.00019178,2]
[369086568,1751465444986,-460.0,0.00019178,2]
[369086569,1751465444998,-460.0,0.00019178,2]
[369086570,1751465445007,-507.34,0.00019178,2]
[369086571,1751465445016,-460.0,0.00019178,2]
[369086572,1751465445026,-460.0,0.00019178,2]
[369086573,1751465445035,-460.0,0.00019178,2]
[369086574,1751465445044,-460.0,0.00019178,2]
[369086575,1751465445053,-460.0,0.00019178,2]
[369086576,1751465445062,-875.76,0.00019178,2]
[369086577,1751465445071,-479.29,0.00019178,2]
[369086578,1751465445081,-460.0,0.00019178,2]
[369086579,1751465445090,-460.0,0.00019178,2]
[369086580,1751465445099,-507.33,0.00019178,2]
[369086581,1751465445108,-460.0,0.00019178,2]
[369086582,1751465445118,-460.0,0.00019178,2]
[369086583,1751465445130,-1208.68,0.00019178,2]
[369086584,1751465445139,-2260.93,0.00019178,2]
[369086585,1751465445148,-460.0,0.00019178,2]
[369086586,1751465445158,-1063.57,0.00019178,2]
[369086587,1751465445167,-460.0,0.00019178,2]
[369086588,1751465445177,-460.0,0.00019178,2]
[369086589,1751465445186,-460.0,0.00019178,2]
[369086590,1751465445197,-512.4,0.00019178,2]
[369086591,1751465445206,-460.0,0.00019178,2]
[369086592,1751465445216,-460.0,0.00019178,2]
[369086593,1751465445226,-460.0,0.00019178,2]
[369086594,1751465445236,-460.0,0.00019178,2]
[369086595,1751465445245,-235.88028879,0.00019178,2]
[369086596,1751465445255,-691.63,0.00019178,2]
[369086597,1751465445264,-3624.05,0.00019178,2]
[369086598,1751465445273,-508.31,0.00019178,2]
[369086599,1751465445282,-460.0,0.00019178,2]
[369086600,1751465445291,-1989.96,0.00019178,2]
[369086601,1751465445301,-460.0,0.00019178,2]
[369086602,1751465445310,-460.0,0.00019178,2]
[369086603,1751465445319,-1636.64,0.00019178,2]
[369086604,1751465445328,-559.4,0.00019178,2]
[369086605,1751465445337,-480.39,0.00019178,2]
[369086606,1751465445346,-460.0,0.00019178,2]
[369086607,1751465445356,-3076.76,0.00019178,2]
[369086608,1751465445365,-460.0,0.00019178,2]
[369086609,1751465445374,-536.28,0.00019178,2]
[369086610,1751465445383,-2245.35,0.00019178,2]
[369086611,1751465445392,-460.0,0.00019178,2]
[369086612,1751465445401,-911.65,0.00019178,2]
[369086613,1751465445410,-477.36,0.00019178,2]
[369086614,1751465445419,-460.0,0.00019178,2]
[369086615,1751465445428,-460.0,0.00019178,2]
[369086616,1751465445438,-460.0,0.00019178,2]
[369086617,1751465445447,-964.7,0.00019178,2]
[369086618,1751465445456,-460.0,0.00019178,2]
[369086619,1751465445465,-460.0,0.00019178,2]
[369086620,1751465445475,-1525.12,0.00019178,2]
[369086621,1751465445484,-467.65,0.00019178,2]
[369086622,1751465445493,-460.0,0.00019178,2]
[369086623,1751465445503,-460.0,0.00019178,2]
[369086624,1751465445512,-460.0,0.00019178,2]
[369086625,1751465445521,-1382.44,0.00019178,2]
[369086626,1751465445531,-460.0,0.00019178,2]
[369086627,1751465445540,-460.0,0.00019178,2]
[369086628,1751465445549,-1569.87,0.00019178,2]
[369086629,1751465445559,-460.0,0.00019178,2]
[369086630,1751465445568,-460.0,0.00019178,2]
[369086631,1751465445578,-460.0,0.00019178,2]
[369086632,1751465445587,-460.0,0.00019178,2]
[369086633,1751465445596,-460.0,0.00019178,2]
[369086634,1751465445606,-460.0,0.00019178,2]
[369086635,1751465445615,-460.0,0.00019178,2]
[369086636,1751465445625,-460.0,0.00019178,2]
[369086637,1751465445634,-460.0,0.00019178,2]
[369086638,1751465445644,-460.0,0.00019178,2]
[369086639,1751465445653,-460.0,0.00019178,2]
[369086641,1751465445663,-921.33,0.00019178,2]
[369086643,1751465445673,-484.93,0.00019178,2]
[369086644,1751465445683,-460.0,0.00019178,2]
[369086646,1751465445692,-1521.43,0.00019178,2]
[369086648,1751465445701,-460.0,0.00019178,2]
[369086650,1751465445711,-603.86,0.00019178,2]
[369086651,1751465445721,-783.26,0.00019178,2]
[369086652,1751465445730,-460.0,0.00019178,2]
[369086653,1751465445740,-3526.95,0.00019178,2]
[369086654,1751465445749,-1204.87,0.00019178,2]
[369086655,1751465445760,-1942.95,0.00019178,2]
[369086656,1751465445769,-500.0,0.00019178,2]
[369086657,1751465445779,-216.345752,0.00019178,2]
[369086658,1751465445789,-198.0,0.00019233,3]
[369086659,1751465445799,-412.85561027,0.00019266,2]
[369086660,1751465445809,-401.793598,0.00019331,2]
[369086661,1751465445819,-168.0,0.00019337,2]
[369086662,1751465445830,-11474.54948228,0.00019352,2]
[369086663,1751465445840,-1543.43472653,0.00019352,2]
[369086664,1751465445849,-6851.93569379,0.00019383,2]
[369086665,1751465445859,-168.0,0.000194,2]
[369086666,1751465445868,-151.0,0.00019452,2]
[369086667,1751465445877,-151.0,0.00019452,2]
[369086668,1751465445887,-151.0,0.00019452,2]
[369086669,1751465445897,-151.0,0.00019452,2]
[369086670,1751465445907,-294.397676,0.00019452,2]
[369086671,1751465445917,-151.0,0.00019452,2]
[369086672,1751465445927,-151.0,0.00019452,2]
[369086673,1751465445936,-155.269289,0.00019452,2]
[369086674,1751465445946,-460.0,0.00019452,2]
[369086675,1751465445956,-151.0,0.00019452,2]
[369086676,1751465445965,-151.0,0.00019452,2]
[369086677,1751465445974,-151.0,0.00019452,2]
[369086678,1751465446097,-151.0,0.00019452,2]
[369086679,1751465446131,-151.0,0.00019452,2]
[369086680,1751465446141,-151.0,0.00019452,2]
[369086681,1751465446150,-223.110571,0.00019452,2]
[369086682,1751465446159,-223.110571,0.00019452,2]
[369086683,1751465446170,-223.110571,0.00019452,2]
[369086684,1751465446178,-223.110571,0.00019452,2]
[369086685,1751465446187,-460.0,0.00019452,2]
[369086686,1751465446196,-151.0,0.00019452,2]
[369086687,1751465446208,-460.0,0.00019452,2]
[369086688,1751465446217,-151.0,0.00019452,2]
[369086689,1751465446227,-460.0,0.00019452,2]
[369086690,1751465446236,-460.0,0.00019452,2]
[369086691,1751465446245,-608.67,0.00019452,2]
[369086692,1751465446254,-591.309093,0.00019452,2]
[369086693,1751465446263,-591.309093,0.00019452,2]
[369086694,1751465446272,-560.92994817,0.00019452,2]
[369086695,1751465446282,-197.129868,0.00019452,2]
[369086696,1751465446292,-151.0,0.00019452,2]
[369086697,1751465446301,-197.129868,0.00019452,2]
[369086698,1751465446310,-1332.55,0.00019452,2]
[369086699,1751465446320,-151.0,0.00019452,2]
[369086700,1751465446330,-151.0,0.00019452,2]
[369086701,1751465446339,-460.0,0.00019452,2]
[369086702,1751465446349,-151.0,0.00019452,2]
[369086703,1751465446358,-460.0,0.00019452,2]
[369086704,1751465446368,-151.0,0.00019452,2]
[369086705,1751465446377,-151.0,0.00019452,2]
[369086706,1751465446386,-460.0,0.00019452,2]
[369086707,1751465446395,-151.0,0.00019452,2]
[369086708,1751465446405,-504.24,0.00019452,2]
[369086709,1751465446414,-460.0,0.00019452,2]
[369086710,1751465446423,-460.0,0.00019452,2]
[369086711,1751465446433,-151.0,0.00019452,2]
[369086712,1751465446442,-151.0,0.00019452,2]
[369086713,1751465446452,-240.630426,0.00019452,2]
[369086714,1751465446461,-240.630426,0.00019452,2]
[369086715,1751465446471,-460.0,0.00019452,2]
[369086716,1751465446480,-460.0,0.00019452,2]
[369086717,1751465446490,-186.11495715,0.00019452,2]
[369086718,1751465446499,-530.84,0.00019452,2]
[369086719,1751465446508,-460.0,0.00019452,2]
[369086720,1751465446517,-460.0,0.00019452,2]
[369086721,1751465446526,-460.0,0.00019452,2]
[369086722,1751465446536,-151.0,0.00019452,2]
[369086723,1751465446545,-460.0,0.00019452,2]
[369086724,1751465446554,-460.0,0.00019452,2]
[369086725,1751465446563,-151.0,0.00019452,2]
[369086726,1751465446572,-4946.17,0.00019452,2]
[369086727,1751465446582,-460.0,0.00019452,2]
[369086728,1751465446591,-151.0,0.00019452,2]
[369086730,1751465446600,-151.0,0.00019452,2]
[369086731,1751465446610,-500.0,0.00019452,2]
[369086732,1751465446619,-460.0,0.00019452,2]
[369086733,1751465446628,-460.0,0.00019452,2]
[369086734,1751465446637,-151.0,0.00019452,2]
[369086735,1751465446647,-397.262036,0.00019452,2]
[369086736,1751465446656,-460.0,0.00019452,2]
[369086737,1751465446665,-2135.92,0.00019452,2]
[369086738,1751465446674,-397.262036,0.00019452,2]
[369086739,1751465446683,-460.0,0.00019452,2]
[369086740,1751465446693,-507.34,0.00019452,2]
[369086741,1751465446702,-460.0,0.00019452,2]
[369086742,1751465446711,-460.0,0.00019452,2]
[369086743,1751465446721,-151.0,0.00019452,2]
[369086744,1751465446731,-415.743074,0.00019452,2]
[369086745,1751465446740,-460.0,0.00019452,2]
[369086746,1751465446749,-875.76,0.00019452,2]
[369086747,1751465446759,-479.29,0.00019452,2]
[369086748,1751465446768,-460.0,0.00019452,2]
[369086749,1751465446779,-151.0,0.00019452,2]
[369086750,1751465446789,-507.33,0.00019452,2]
[369086751,1751465446799,-151.0,0.00019452,2]
[369086752,1751465446808,-1208.68,0.00019452,2]
[369086753,1751465446817,-2260.93,0.00019452,2]
[369086754,1751465446827,-151.0,0.00019452,2]
[369086755,1751465446835,-460.0,0.00019452,2]
[369086756,1751465446845,-1063.57,0.00019452,2]
[369086757,1751465446854,-460.0,0.00019452,2]
[369086758,1751465446865,-460.0,0.00019452,2]
[369086759,1751465446874,-151.0,0.00019452,2]
[369086760,1751465446884,-460.0,0.00019452,2]
[369086761,1751465446893,-512.4,0.00019452,2]
[369086762,1751465446903,-151.0,0.00019452,2]
[369086763,1751465446912,-460.0,0.00019452,2]
[369086764,1751465446922,-151.442658,0.00019452,2]
[369086765,1751465446931,-151.0,0.00019452,2]
[369086766,1751465446941,-691.63,0.00019452,2]
[369086767,1751465446951,-3624.05,0.00019452,2]
[369086768,1751465446961,-508.31,0.00019452,2]
[369086769,1751465446971,-74.92367896,0.00019452,2]
[369086770,1751465447295,-12573.65100011,0.0001917,2]
[369086771,1751465447305,-160.0,0.0001917,2]
[369086772,1751465447315,-230.34465076,0.0001917,2]
[369086773,1751465447325,-377.74329543,0.00019178,2]
[369086774,1751465447335,-385.07632104,0.00019452,2]
[369086775,1751465447346,-1989.96,0.00019452,2]
[369086776,1751465447356,-460.0,0.00019452,2]
[369086777,1751465447366,-1636.64,0.00019452,2]
[369086778,1751465447375,-559.4,0.00019452,2]
[369086779,1751465447385,-480.39,0.00019452,2]
[369086780,1751465447394,-460.0,0.00019452,2]
[369086781,1751465447404,-3076.76,0.00019452,2]
[369086782,1751465447413,-460.0,0.00019452,2]
[369086783,1751465447422,-536.28,0.00019452,2]
[369086784,1751465447432,-2245.35,0.00019452,2]
[369086785,1751465447441,-911.65,0.00019452,2]
[369086786,1751465447451,-274.841071,0.00019452,2]
[369086787,1751465447462,-151.0,0.00019452,2]
[369086788,1751465447472,-151.0,0.00019452,2]
[369086789,1751465447481,-477.36,0.00019452,2]
[369086790,1751465447491,-460.0,0.00019452,2]
[369086791,1751465447500,-274.841071,0.00019452,2]
[369086792,1751465447510,-460.0,0.00019452,2]
[369086793,1751465447519,-460.0,0.00019452,2]
[369086794,1751465447529,-964.7,0.00019452,2]
[369086795,1751465447540,-460.0,0.00019452,2]
[369086796,1751465447551,-1525.12,0.00019452,2]
[369086797,1751465447560,-467.65,0.00019452,2]
[369086798,1751465447570,-460.0,0.00019452,2]
[369086799,1751465447580,-460.0,0.00019452,2]
[369086800,1751465447589,-460.0,0.00019452,2]
[369086801,1751465447599,-1382.44,0.00019452,2]
[369086802,1751465447608,-460.0,0.00019452,2]
[369086803,1751465447618,-460.0,0.00019452,2]
[369086804,1751465447627,-1569.87,0.00019452,2]
[369086805,1751465447637,-460.0,0.00019452,2]
[369086806,1751465447646,-460.0,0.00019452,2]
[369086807,1751465447656,-460.0,0.00019452,2]
[369086808,1751465447665,-460.0,0.00019452,2]
[369086809,1751465447674,-460.0,0.00019452,2]
[369086810,1751465447683,-460.0,0.00019452,2]
[369086811,1751465447694,-460.0,0.00019452,2]
[369086812,1751465447708,-689.76486,0.00019452,2]
[369086813,1751465447718,-460.0,0.00019452,2]
[369086814,1751465447727,-689.76486,0.00019452,2]
[369086815,1751465447737,-921.33,0.00019452,2]
[369086816,1751465447747,-484.93,0.00019452,2]
[369086817,1751465447756,-460.0,0.00019452,2]
[369086818,1751465447766,-1521.43,0.00019452,2]
[369086819,1751465447776,-460.0,0.00019452,2]
[369086820,1751465447786,-603.86,0.00019452,2]
[369086821,1751465447795,-783.26,0.00019452,2]
[369086822,1751465447805,-460.0,0.00019452,2]
[369086823,1751465447815,-3526.95,0.00019452,2]
[369086824,1751465447824,-158.624988,0.00019452,2]
[369086825,1751465447834,-1204.87,0.00019452,2]
[369086826,1751465447843,-1942.95,0.00019452,2]
[369086827,1751465447852,-197.292948,0.00019452,2]
[369086828,1751465447862,-500.0,0.00019473,2]
[369086829,1751465447871,-500.0,0.00019473,2]
[369086830,1751465447881,-500.0,0.00019479,2]
[369086831,1751465447890,-641.0,0.000195,2]
[369086832,1751465447900,-500.0,0.00019507,2]
[369086833,1751465447909,-500.0,0.00019534,2]
[369086834,1751465447919,-500.0,0.00019562,2]
[369086835,1751465447929,-203.3,0.00019564,3]
[369086836,1751465447941,-366.4191338,0.00019599,2]
[369086837,1751465447950,-366.4191338,0.00019599,2]
[369086838,1751465447959,-366.4191338,0.00019599,2]
[369086839,1751465447970,-366.4191338,0.00019599,2]
[369086840,1751465447979,-366.4191338,0.00019599,2]
[369086841,1751465447989,-366.4191338,0.00019599,2]
[369086842,1751465447999,-366.4191338,0.00019599,2]
[369086843,1751465448008,-182.0,0.000196,2]
[369086844,1751465448018,-168.0,0.00019605,2]
[369086845,1751465448028,-689.76486,0.00019624,2]
[369086846,1751465448038,-689.76486,0.00019624,2]
[369086847,1751465448048,-6851.93569379,0.00019624,2]
[369086848,1751465448057,-168.0,0.00019624,2]
[369086849,1751465448067,-151.0,0.00019626,2]
[369086850,1751465448077,-151.104935,0.00019626,2]
[369086851,1751465448091,-151.0,0.00019626,2]
[369086852,1751465448101,-151.0,0.00019626,2]
[369086853,1751465448111,-172.4531322,0.00019626,2]
[369086854,1751465448121,-151.0,0.00019626,2]
[369086855,1751465448133,-296.46611,0.00019626,2]
[369086856,1751465448143,-296.46611,0.00019626,2]
[369086857,1751465448152,-151.0,0.00019626,2]
[369086858,1751465448162,-191.092026,0.00019626,2]
[369086859,1751465448172,-191.092026,0.00019626,2]
[369086860,1751465448182,-402.352505,0.00019626,2]
[369086861,1751465448192,-402.352505,0.00019626,2]
[369086862,1751465448202,-151.0,0.00019626,2]
[369086863,1751465448213,-151.0,0.00019626,2]
[369086864,1751465448222,-197.292948,0.00019636,2]
[369086865,1751465448232,-152.636,0.00019636,2]
[369086866,1751465448241,-179.889,0.00019636,2]
[369086867,1751465448250,-201.495,0.00019636,2]
[369086868,1751465448260,-176.819,0.00019636,2]
[369086869,1751465448269,-966.0,0.00019636,2]
[369086870,1751465448279,-678.0,0.00019636,2]
[369086871,1751465448289,-2151.0,0.00019636,2]
[369086872,1751465448299,-1183.20128141,0.000197,2]
[369086873,1751465448309,-406.0,0.00019708,2]
[369086874,1751465448318,-424.928,0.00019708,2]
[369086875,1751465448327,-5082.83295575,0.00019726,2]
[369086876,1751465448337,-35723.839017,0.00019726,2]
[369086877,1751465448346,-151.0,0.00019726,2]
[369086878,1751465448355,-151.0,0.00019726,2]
[369086879,1751465448365,-151.0,0.00019726,2]
[369086880,1751465448374,-151.0,0.00019726,2]
[369086881,1751465448383,-151.0,0.00019726,2]
[369086882,1751465448392,-151.0,0.00019726,2]
[369086883,1751465448401,-151.0,0.00019726,2]
[369086884,1751465448411,-151.0,0.00019726,2]
[369086885,1751465448420,-151.266379,0.00019726,2]
[369086886,1751465448430,-460.0,0.00019726,2]
[369086887,1751465448439,-151.0,0.00019726,2]
[369086888,1751465448448,-151.0,0.00019726,2]
[369086889,1751465448457,-151.0,0.00019726,2]
[369086890,1751465448466,-151.0,0.00019726,2]
[369086891,1751465448475,-151.0,0.00019726,2]
[369086892,1751465448485,-151.0,0.00019726,2]
[369086893,1751465448494,-151.0,0.00019726,2]
[369086894,1751465448504,-151.0,0.00019726,2]
[369086895,1751465448513,-223.110571,0.00019726,2]
[369086896,1751465448523,-223.110571,0.00019726,2]
[369086897,1751465448532,-223.110571,0.00019726,2]
[369086898,1751465448542,-223.110571,0.00019726,2]
[369086899,1751465448552,-151.0,0.00019726,2]
[369086900,1751465448561,-151.0,0.00019726,2]
[369086901,1751465448570,-151.0,0.00019726,2]
[369086902,1751465448579,-151.0,0.00019726,2]
[369086903,1751465448588,-151.0,0.00019726,2]
[369086904,1751465448596,-151.0,0.00019726,2]
[369086905,1751465448606,-151.0,0.00019726,2]
[369086906,1751465448615,-151.0,0.00019726,2]
[369086907,1751465448624,-151.0,0.00019726,2]
[369086908,1751465448633,-152.097823,0.00019726,2]
[369086909,1751465448642,-151.0,0.00019726,2]
[369086910,1751465448652,-151.0,0.00019726,2]
[369086911,1751465448661,-151.0,0.00019726,2]
[369086912,1751465448671,-151.0,0.00019726,2]
[369086913,1751465448680,-151.0,0.00019726,2]
[369086914,1751465448690,-151.0,0.00019726,2]
[369086915,1751465448699,-155.737143,0.00019726,2]
[369086916,1751465448709,-155.737143,0.00019726,2]
[369086917,1751465448719,-155.737143,0.00019726,2]
[369086918,1751465448728,-155.737143,0.00019726,2]
[369086919,1751465448738,-151.0,0.00019726,2]
[369086920,1751465448748,-151.0,0.00019726,2]
[369086921,1751465448757,-151.0,0.00019726,2]
[369086922,1751465448767,-151.0,0.00019726,2]
[369086923,1751465448776,-151.0,0.00019726,2]
[369086924,1751465448786,-207.159278,0.00019726,2]
[369086925,1751465448796,-151.0,0.00019726,2]
[369086926,1751465448806,-151.0,0.00019726,2]
[369086927,1751465448816,-151.0,0.00019726,2]
[369086928,1751465448825,-151.0,0.00019726,2]
[369086929,1751465448835,-151.0,0.00019726,2]
[369086930,1751465448844,-151.0,0.00019726,2]
[369086931,1751465448854,-151.0,0.00019726,2]
[369086932,1751465448863,-151.0,0.00019726,2]
[369086933,1751465448872,-151.0,0.00019726,2]
[369086934,1751465448882,-460.0,0.00019726,2]
[369086935,1751465448892,-151.0,0.00019726,2]
[369086936,1751465448902,-151.0,0.00019726,2]
[369086937,1751465448911,-151.0,0.00019726,2]
[369086938,1751465448921,-151.0,0.00019726,2]
[369086939,1751465448931,-351.7679198,0.00019726,2]
[369086940,1751465448941,-151.0,0.00019726,2]
[369086941,1751465448951,-460.0,0.00019726,2]
[369086942,1751465448961,-296.46611,0.00019726,2]
[369086943,1751465448971,-296.46611,0.00019726,2]
[369086944,1751465448980,-151.0,0.00019726,2]
[369086945,1751465448990,-460.0,0.00019726,2]
[369086946,1751465448999,-608.67,0.00019726,2]
[369086947,1751465449009,-591.309093,0.00019726,2]
[369086948,1751465449018,-591.309093,0.00019726,2]
[369086949,1751465449028,-197.129868,0.00019726,2]
[369086950,1751465449038,-151.0,0.00019726,2]
[369086951,1751465449047,-191.092026,0.00019726,2]
[369086952,1751465449056,-197.129868,0.00019726,2]
[369086953,1751465449066,-191.092026,0.00019726,2]
[369086954,1751465449076,-1332.55,0.00019726,2]
[369086955,1751465449086,-151.0,0.00019726,2]
[369086956,1751465449095,-151.0,0.00019726,2]
[369086957,1751465449240,-460.0,0.00019726,2]
[369086958,1751465449251,-151.0,0.00019726,2]
[369086959,1751465449261,-151.0,0.00019726,2]
[369086960,1751465449271,-460.0,0.00019726,2]
[369086961,1751465449280,-151.0,0.00019726,2]
[369086962,1751465449291,-161.296516,0.00019726,2]
[369086963,1751465449301,-402.352505,0.00019726,2]